[Event "Titled Tuesday Blitz May 9 Late 2023"]
[White "Marcziter, Dmitrii"]
[Black "Sanhueza, Cristian"]
[WhiteFideId "13900765"]
[BlackFideId "116815"]
[WhiteElo "2162"]
[BlackElo "2174"]
[Result "1-0"]
[Round "07"]
[TimeControl "180+2"]
[Date "2023.05.09"]
[WhiteClock "0:00:02"]
[BlackClock "0:00:03"]

1. e4 {[%clk 0:03:00]}  b6 {[%clk 0:02:59]} 2. d4 {[%clk 0:03:00]}  Bb7 {[%clk 0:03:00]} 3. Bd3 {[%clk 0:03:00]}  e6 {[%clk 0:03:00]} 4. Qe2 {[%clk 0:02:58]}  c5 {[%clk 0:03:00]} 5. c3 {[%clk 0:02:57]}  cxd4 {[%clk 0:03:00]} 6. cxd4 {[%clk 0:02:56]}  Nc6 {[%clk 0:03:00]} 7. Nf3 {[%clk 0:02:53]}  Nf6 {[%clk 0:02:59]} 8. a3 {[%clk 0:02:50]}  Be7 {[%clk 0:02:57]} 9. Nc3 {[%clk 0:02:48]}  d6 {[%clk 0:02:56]} 10. O-O {[%clk 0:02:47]}  h6 {[%clk 0:02:49]} 11. Bf4 {[%clk 0:02:43]}  Nh5 {[%clk 0:02:46]} 12. Be3 {[%clk 0:02:41]}  e5 {[%clk 0:02:37]} 13. Rad1 {[%clk 0:02:37]}  exd4 {[%clk 0:02:28]} 14. Nxd4 {[%clk 0:02:36]}  Nxd4 {[%clk 0:02:21]} 15. Qxh5 {[%clk 0:02:35]}  Ne6 {[%clk 0:02:21]} 16. Nd5 {[%clk 0:02:28]}  O-O {[%clk 0:02:15]} 17. f4 {[%clk 0:02:24]}  Bf6 {[%clk 0:02:02]} 18. b4 {[%clk 0:02:17]}  Bxd5 {[%clk 0:01:45]} 19. exd5 {[%clk 0:02:15]}  Bd4 {[%clk 0:01:37]} 20. Bxd4 {[%clk 0:02:07]}  Nxd4 {[%clk 0:01:36]} 21. f5 {[%clk 0:01:58]}  Qf6 {[%clk 0:01:35]} 22. Qg4 {[%clk 0:01:47]}  Rfe8 {[%clk 0:01:30]} 23. Rf4 {[%clk 0:01:44]}  Nb3 {[%clk 0:00:57]} 24. Bc4 {[%clk 0:01:42]}  Qc3 {[%clk 0:00:42]} 25. Bxb3 {[%clk 0:01:19]}  Qxb3 {[%clk 0:00:35]} 26. f6 {[%clk 0:01:10]}  g6 {[%clk 0:00:33]} 27. Rdf1 {[%clk 0:01:03]}  Re5 {[%clk 0:00:32]} 28. Rc4 {[%clk 0:00:58]}  Rae8 {[%clk 0:00:25]} 29. h4 {[%clk 0:00:48]}  h5 {[%clk 0:00:20]} 30. Qf4 {[%clk 0:00:43]}  Qe3+ {[%clk 0:00:21]} 31. Qxe3 {[%clk 0:00:41]}  Rxe3 {[%clk 0:00:22]} 32. a4 {[%clk 0:00:40]}  Rd3 {[%clk 0:00:20]} 33. Rc7 {[%clk 0:00:38]}  a5 {[%clk 0:00:19]} 34. b5 {[%clk 0:00:32]}  Rxd5 {[%clk 0:00:18]} 35. Rb7 {[%clk 0:00:30]}  Rd2 {[%clk 0:00:19]} 36. Rc1 {[%clk 0:00:21]}  Rd4 {[%clk 0:00:09]} 37. Rcc7 {[%clk 0:00:17]}  Rf8 {[%clk 0:00:07]} 38. Rxb6 {[%clk 0:00:14]}  Rxa4 {[%clk 0:00:07]} 39. Rxd6 {[%clk 0:00:13]}  Rb4 {[%clk 0:00:07]} 40. b6 {[%clk 0:00:13]}  Rb8 {[%clk 0:00:04]} 41. Rdd7 {[%clk 0:00:12]}  R4xb6 {[%clk 0:00:01]} 42. Rxf7 {[%clk 0:00:11]}  a4 {[%clk 0:00:01]} 43. Rg7+ {[%clk 0:00:10]}  Kf8 {[%clk 0:00:02]} 44. Rcf7+ {[%clk 0:00:09]}  Ke8 {[%clk 0:00:02]} 45. Ra7 {[%clk 0:00:06]}  Kf8 {[%clk 0:00:03]} 46. Rh7 {[%clk 0:00:05]}  Rb1+ {[%clk 0:00:02]} 47. Kh2 {[%clk 0:00:04]}  Kg8 {[%clk 0:00:02]} 48. Rag7+ {[%clk 0:00:02]}  Kf8 {[%clk 0:00:03]} 49. Rh8# {[%clk 0:00:02]} 1-0


[Site "https://www.chess.com"]

[Event "Titled Tuesday Blitz May 9 Late 2023"]
[White "Moral Garcia, Serafin"]
[Black "Figorito, Nick"]
[WhiteFideId "2201925"]
[BlackFideId "30923689"]
[WhiteElo "2274"]
[BlackElo "2364"]
[Result "1-0"]
[Round "07"]
[TimeControl "180+2"]
[Date "2023.05.09"]
[WhiteClock "0:00:22"]
[BlackClock "0:00:04"]

1. c4 {[%clk 0:03:00]}  c6 {[%clk 0:02:59]} 2. e4 {[%clk 0:02:50]}  d5 {[%clk 0:03:00]} 3. exd5 {[%clk 0:02:48]}  cxd5 {[%clk 0:03:01]} 4. d4 {[%clk 0:02:49]}  Nf6 {[%clk 0:03:01]} 5. Nc3 {[%clk 0:02:48]}  Nc6 {[%clk 0:02:53]} 6. Bg5 {[%clk 0:02:47]}  dxc4 {[%clk 0:02:51]} 7. Bxc4 {[%clk 0:02:46]}  e6 {[%clk 0:02:51]} 8. Nf3 {[%clk 0:02:44]}  Be7 {[%clk 0:02:44]} 9. O-O {[%clk 0:02:28]}  O-O {[%clk 0:02:44]} 10. Rc1 {[%clk 0:02:24]}  b6 {[%clk 0:02:38]} 11. Bd3 {[%clk 0:02:10]}  Bb7 {[%clk 0:02:34]} 12. a3 {[%clk 0:02:08]}  Rc8 {[%clk 0:02:26]} 13. Re1 {[%clk 0:02:04]}  Re8 {[%clk 0:02:17]} 14. Bc2 {[%clk 0:02:02]}  Nd5 {[%clk 0:01:57]} 15. Qd3 {[%clk 0:01:56]}  g6 {[%clk 0:01:54]} 16. Bxe7 {[%clk 0:01:54]}  Ncxe7 {[%clk 0:01:40]} 17. Ne2 {[%clk 0:01:48]}  Nf5 {[%clk 0:01:31]} 18. Bb3 {[%clk 0:01:44]}  Rxc1 {[%clk 0:01:20]} 19. Rxc1 {[%clk 0:01:41]}  Nh4 {[%clk 0:01:21]} 20. Nxh4 {[%clk 0:01:28]}  Qxh4 {[%clk 0:01:22]} 21. Qd2 {[%clk 0:01:22]}  Qf6 {[%clk 0:01:03]} 22. f3 {[%clk 0:01:15]}  Kg7 {[%clk 0:00:59]} 23. Bxd5 {[%clk 0:01:10]}  Bxd5 {[%clk 0:00:58]} 24. Nf4 {[%clk 0:01:04]}  Rd8 {[%clk 0:00:48]} 25. Qe3 {[%clk 0:01:02]}  Ba8 {[%clk 0:00:46]} 26. Ne2 {[%clk 0:00:55]}  Bb7 {[%clk 0:00:43]} 27. Rc7 {[%clk 0:00:55]}  Ba6 {[%clk 0:00:43]} 28. Nc3 {[%clk 0:00:48]}  Rxd4 {[%clk 0:00:33]} 29. Rxa7 {[%clk 0:00:47]}  Bc4 {[%clk 0:00:30]} 30. Ra4 {[%clk 0:00:35]}  b5 {[%clk 0:00:27]} 31. Rb4 {[%clk 0:00:33]}  Rd3 {[%clk 0:00:25]} 32. Qe1 {[%clk 0:00:31]}  h5 {[%clk 0:00:23]} 33. a4 {[%clk 0:00:30]}  h4 {[%clk 0:00:21]} 34. h3 {[%clk 0:00:30]}  Qd4+ {[%clk 0:00:14]} 35. Kh2 {[%clk 0:00:29]}  Qf4+ {[%clk 0:00:13]} 36. Kg1 {[%clk 0:00:28]}  Qd4+ {[%clk 0:00:11]} 37. Qf2 {[%clk 0:00:28]}  Qxf2+ {[%clk 0:00:09]} 38. Kxf2 {[%clk 0:00:28]}  Rd2+ {[%clk 0:00:09]} 39. Kg1 {[%clk 0:00:23]}  bxa4 {[%clk 0:00:05]} 40. Rxc4 {[%clk 0:00:22]}  Rxb2 {[%clk 0:00:05]} 41. Nxa4 {[%clk 0:00:22]}  g5 {[%clk 0:00:04]} 42. Nxb2 {[%clk 0:00:22]} 1-0


[Site "https://www.chess.com"]

[Event "Titled Tuesday Blitz May 9 Late 2023"]
[White "Al-Saffar, Araz Basim Mohammed S"]
[Black "Seletsky, Grigory"]
[WhiteFideId "4801040"]
[BlackFideId "14112191"]
[WhiteElo "2304"]
[BlackElo "2491"]
[Result "0-1"]
[Round "07"]
[TimeControl "180+2"]
[Date "2023.05.09"]
[WhiteClock "0:01:12"]
[BlackClock "0:02:14"]

1. d4 {[%clk 0:02:57]}  c5 {[%clk 0:03:00]} 2. d5 {[%clk 0:02:57]}  e5 {[%clk 0:03:01]} 3. e4 {[%clk 0:02:56]}  d6 {[%clk 0:03:00]} 4. c4 {[%clk 0:02:57]}  Nf6 {[%clk 0:02:59]} 5. Nc3 {[%clk 0:02:57]}  Be7 {[%clk 0:02:59]} 6. g3 {[%clk 0:02:57]}  O-O {[%clk 0:03:00]} 7. Bg2 {[%clk 0:02:57]}  Ne8 {[%clk 0:03:00]} 8. Nge2 {[%clk 0:02:50]}  Na6 {[%clk 0:02:59]} 9. O-O {[%clk 0:02:50]}  Nac7 {[%clk 0:02:59]} 10. f4 {[%clk 0:02:41]}  Bf6 {[%clk 0:02:59]} 11. f5 {[%clk 0:02:39]}  Bg5 {[%clk 0:02:56]} 12. h4 {[%clk 0:02:38]}  Bxc1 {[%clk 0:02:55]} 13. Qxc1 {[%clk 0:02:38]}  Rb8 {[%clk 0:02:46]} 14. a4 {[%clk 0:02:38]}  a6 {[%clk 0:02:45]} 15. g4 {[%clk 0:02:09]}  Qxh4 {[%clk 0:02:42]} 16. g5 {[%clk 0:02:04]}  h6 {[%clk 0:02:42]} 17. gxh6 {[%clk 0:02:04]}  Qxh6 {[%clk 0:02:41]} 18. Qxh6 {[%clk 0:02:01]}  gxh6 {[%clk 0:02:42]} 19. Kf2 {[%clk 0:02:01]}  Nf6 {[%clk 0:02:42]} 20. Bf3 {[%clk 0:01:56]}  b5 {[%clk 0:02:38]} 21. axb5 {[%clk 0:01:55]}  axb5 {[%clk 0:02:38]} 22. Ra7 {[%clk 0:01:54]}  Nfe8 {[%clk 0:02:33]} 23. Rg1+ {[%clk 0:01:45]}  Kh7 {[%clk 0:02:19]} 24. cxb5 {[%clk 0:01:18]}  Nxb5 {[%clk 0:02:18]} 25. Bh5 {[%clk 0:01:12]}  Nxa7 {[%clk 0:02:14]} 0-1


[Site "https://www.chess.com"]

[Event "Titled Tuesday Blitz May 9 Late 2023"]
[White "Ansh M Shah"]
[Black "Martic, Ivan"]
[WhiteFideId "25033379"]
[BlackFideId "929301"]
[WhiteElo "2084"]
[BlackElo "2360"]
[Result "1-0"]
[Round "07"]
[TimeControl "180+2"]
[Date "2023.05.09"]
[WhiteClock "0:00:06"]
[BlackClock "0:00:00"]

1. d4 {[%clk 0:03:00]}  d5 {[%clk 0:02:58]} 2. c4 {[%clk 0:03:00]}  Nc6 {[%clk 0:02:59]} 3. e3 {[%clk 0:02:57]}  e5 {[%clk 0:02:58]} 4. Nf3 {[%clk 0:02:56]}  Bb4+ {[%clk 0:02:52]} 5. Bd2 {[%clk 0:02:54]}  Bxd2+ {[%clk 0:02:50]} 6. Nbxd2 {[%clk 0:02:48]}  exd4 {[%clk 0:02:49]} 7. exd4 {[%clk 0:02:44]}  Nf6 {[%clk 0:02:48]} 8. cxd5 {[%clk 0:02:37]}  Nxd5 {[%clk 0:02:48]} 9. Bb5 {[%clk 0:02:35]}  Qe7+ {[%clk 0:02:44]} 10. Ne5 {[%clk 0:02:31]}  O-O {[%clk 0:02:40]} 11. Bxc6 {[%clk 0:02:30]}  bxc6 {[%clk 0:02:37]} 12. O-O {[%clk 0:02:30]}  Ba6 {[%clk 0:02:15]} 13. Re1 {[%clk 0:02:26]}  Qh4 {[%clk 0:02:08]} 14. Nxc6 {[%clk 0:02:17]}  Rae8 {[%clk 0:01:52]} 15. Nf3 {[%clk 0:02:14]}  Qh6 {[%clk 0:01:48]} 16. Qa4 {[%clk 0:01:55]}  Bb7 {[%clk 0:01:43]} 17. Rxe8 {[%clk 0:01:41]}  Rxe8 {[%clk 0:01:42]} 18. Nce5 {[%clk 0:01:39]}  Rd8 {[%clk 0:01:29]} 19. Qxa7 {[%clk 0:01:37]}  Ba8 {[%clk 0:01:28]} 20. Re1 {[%clk 0:01:14]}  f6 {[%clk 0:01:28]} 21. Ng4 {[%clk 0:01:14]}  Qf4 {[%clk 0:01:26]} 22. Ne3 {[%clk 0:01:10]}  Nb4 {[%clk 0:01:21]} 23. Qc5 {[%clk 0:00:57]}  Nd5 {[%clk 0:00:55]} 24. Qc1 {[%clk 0:00:26]}  Nxe3 {[%clk 0:00:39]} 25. Qxe3 {[%clk 0:00:27]}  Qg4 {[%clk 0:00:35]} 26. h3 {[%clk 0:00:20]}  Qg6 {[%clk 0:00:34]} 27. Qe6+ {[%clk 0:00:20]}  Qf7 {[%clk 0:00:30]} 28. Qxf7+ {[%clk 0:00:19]}  Kxf7 {[%clk 0:00:31]} 29. Rc1 {[%clk 0:00:17]}  Rd7 {[%clk 0:00:28]} 30. Kf1 {[%clk 0:00:16]}  Ke6 {[%clk 0:00:28]} 31. Ke2 {[%clk 0:00:16]}  Kd5 {[%clk 0:00:28]} 32. Kd3 {[%clk 0:00:16]}  Kd6 {[%clk 0:00:24]} 33. Ne1 {[%clk 0:00:15]}  Re7 {[%clk 0:00:24]} 34. f3 {[%clk 0:00:15]}  Bd5 {[%clk 0:00:24]} 35. b3 {[%clk 0:00:15]}  c6 {[%clk 0:00:24]} 36. Nc2 {[%clk 0:00:14]}  Rb7 {[%clk 0:00:24]} 37. Ne3 {[%clk 0:00:14]}  Be6 {[%clk 0:00:24]} 38. Rc5 {[%clk 0:00:13]}  g6 {[%clk 0:00:23]} 39. Nc4+ {[%clk 0:00:14]}  Kd7 {[%clk 0:00:22]} 40. Na5 {[%clk 0:00:13]}  Rb6 {[%clk 0:00:20]} 41. Kc3 {[%clk 0:00:10]}  Bd5 {[%clk 0:00:19]} 42. b4 {[%clk 0:00:10]}  Rb8 {[%clk 0:00:19]} 43. a3 {[%clk 0:00:10]}  Re8 {[%clk 0:00:18]} 44. Kd2 {[%clk 0:00:11]}  g5 {[%clk 0:00:16]} 45. Nc4 {[%clk 0:00:11]}  Rb8 {[%clk 0:00:09]} 46. Ne3 {[%clk 0:00:11]}  Be6 {[%clk 0:00:08]} 47. d5 {[%clk 0:00:10]}  cxd5 {[%clk 0:00:09]} 48. Nxd5 {[%clk 0:00:11]}  Rf8 {[%clk 0:00:07]} 49. Nb6+ {[%clk 0:00:10]}  Kd6 {[%clk 0:00:07]} 50. Na4 {[%clk 0:00:09]}  Ra8 {[%clk 0:00:06]} 51. Nc3 {[%clk 0:00:09]}  h5 {[%clk 0:00:03]} 52. a4 {[%clk 0:00:07]}  Rb8 {[%clk 0:00:02]} 53. Nb5+ {[%clk 0:00:06]}  Ke7 {[%clk 0:00:02]} 54. Kc3 {[%clk 0:00:05]}  h4 {[%clk 0:00:00]} 55. Nd4 {[%clk 0:00:06]} 1-0


[Site "https://www.chess.com"]

[Event "Titled Tuesday Blitz May 9 Late 2023"]
[White "FuenfgegenWilly"]
[Black "merinasian"]
[WhiteElo "2327"]
[BlackElo "2430"]
[Result "1-0"]
[Round "07"]
[TimeControl "180+2"]
[Date "2023.05.09"]
[WhiteClock "0:00:39"]
[BlackClock "0:00:20"]

1. Nf3 {[%clk 0:02:59]}  Nf6 {[%clk 0:02:57]} 2. b3 {[%clk 0:02:59]}  g6 {[%clk 0:02:48]} 3. Bb2 {[%clk 0:02:59]}  Bg7 {[%clk 0:02:48]} 4. g3 {[%clk 0:02:59]}  O-O {[%clk 0:02:48]} 5. Bg2 {[%clk 0:03:00]}  d6 {[%clk 0:02:49]} 6. d4 {[%clk 0:03:00]}  e5 {[%clk 0:02:43]} 7. dxe5 {[%clk 0:02:58]}  Ng4 {[%clk 0:02:41]} 8. O-O {[%clk 0:02:54]}  Nc6 {[%clk 0:02:40]} 9. c4 {[%clk 0:02:54]}  Ngxe5 {[%clk 0:02:10]} 10. Nc3 {[%clk 0:02:49]}  Nxf3+ {[%clk 0:02:07]} 11. exf3 {[%clk 0:02:49]}  Be6 {[%clk 0:02:03]} 12. f4 {[%clk 0:02:48]}  Qd7 {[%clk 0:02:02]} 13. Qd2 {[%clk 0:02:48]}  Bh3 {[%clk 0:02:01]} 14. Nd5 {[%clk 0:02:47]}  f6 {[%clk 0:01:47]} 15. Rfe1 {[%clk 0:02:41]}  Bxg2 {[%clk 0:01:47]} 16. Kxg2 {[%clk 0:02:41]}  f5 {[%clk 0:01:36]} 17. Re3 {[%clk 0:02:32]}  Rae8 {[%clk 0:01:29]} 18. Rae1 {[%clk 0:02:30]}  Rxe3 {[%clk 0:01:28]} 19. Rxe3 {[%clk 0:02:29]}  Bxb2 {[%clk 0:01:27]} 20. Qxb2 {[%clk 0:02:28]}  Qg7 {[%clk 0:01:28]} 21. Qe2 {[%clk 0:02:24]}  h6 {[%clk 0:01:11]} 22. h4 {[%clk 0:02:13]}  Kh7 {[%clk 0:01:03]} 23. h5 {[%clk 0:02:01]}  Rf7 {[%clk 0:00:55]} 24. hxg6+ {[%clk 0:02:00]}  Qxg6 {[%clk 0:00:55]} 25. Re8 {[%clk 0:01:56]}  Nd4 {[%clk 0:00:50]} 26. Qe3 {[%clk 0:01:53]}  Qg7 {[%clk 0:00:50]} 27. Rc8 {[%clk 0:01:33]}  c6 {[%clk 0:00:50]} 28. Nc3 {[%clk 0:01:26]}  Re7 {[%clk 0:00:50]} 29. Qd3 {[%clk 0:01:25]}  h5 {[%clk 0:00:45]} 30. Nd1 {[%clk 0:01:13]}  Re4 {[%clk 0:00:41]} 31. Nc3 {[%clk 0:01:05]}  Re7 {[%clk 0:00:38]} 32. Nd1 {[%clk 0:01:04]}  h4 {[%clk 0:00:38]} 33. Ne3 {[%clk 0:01:03]}  hxg3 {[%clk 0:00:36]} 34. fxg3 {[%clk 0:01:01]}  Re4 {[%clk 0:00:32]} 35. Nxf5 {[%clk 0:00:56]}  Nxf5 {[%clk 0:00:32]} 36. Qxe4 {[%clk 0:00:55]}  Qxg3+ {[%clk 0:00:33]} 37. Kf1 {[%clk 0:00:54]}  Qh3+ {[%clk 0:00:31]} 38. Ke2 {[%clk 0:00:53]}  Qh2+ {[%clk 0:00:26]} 39. Kd1 {[%clk 0:00:51]}  Qg1+ {[%clk 0:00:26]} 40. Kc2 {[%clk 0:00:51]}  Qg6 {[%clk 0:00:24]} 41. Rc7+ {[%clk 0:00:48]}  Kg8 {[%clk 0:00:24]} 42. Kb2 {[%clk 0:00:40]}  Qf6+ {[%clk 0:00:24]} 43. Ka3 {[%clk 0:00:40]}  Qf7 {[%clk 0:00:20]} 44. Rxf7 {[%clk 0:00:39]} 1-0


[Site "https://www.chess.com"]

[Event "Titled Tuesday Blitz May 9 Late 2023"]
[White "Colpe, Malte"]
[Black "Abdi, Farzad"]
[WhiteFideId "24623075"]
[BlackFideId "2076829"]
[WhiteElo "2289"]
[BlackElo "2264"]
[Result "1-0"]
[Round "07"]
[TimeControl "180+2"]
[Date "2023.05.09"]
[WhiteClock "0:00:43"]
[BlackClock "0:00:01"]

1. d4 {[%clk 0:03:00]}  Nf6 {[%clk 0:02:57]} 2. c4 {[%clk 0:03:00]}  e6 {[%clk 0:02:58]} 3. Nf3 {[%clk 0:03:00]}  d5 {[%clk 0:02:56]} 4. g3 {[%clk 0:02:56]}  Bb4+ {[%clk 0:02:53]} 5. Bd2 {[%clk 0:02:54]}  Bxd2+ {[%clk 0:02:52]} 6. Nbxd2 {[%clk 0:02:54]}  O-O {[%clk 0:02:52]} 7. Bg2 {[%clk 0:02:54]}  b6 {[%clk 0:02:47]} 8. cxd5 {[%clk 0:02:51]}  exd5 {[%clk 0:02:47]} 9. O-O {[%clk 0:02:52]}  Bb7 {[%clk 0:02:45]} 10. Ne5 {[%clk 0:02:44]}  c5 {[%clk 0:02:40]} 11. dxc5 {[%clk 0:02:37]}  bxc5 {[%clk 0:02:40]} 12. Nb3 {[%clk 0:02:36]}  c4 {[%clk 0:02:33]} 13. Nd4 {[%clk 0:02:35]}  Qb6 {[%clk 0:02:32]} 14. Qd2 {[%clk 0:02:30]}  Re8 {[%clk 0:02:31]} 15. Nef3 {[%clk 0:02:22]}  Nbd7 {[%clk 0:02:24]} 16. Nf5 {[%clk 0:02:14]}  g6 {[%clk 0:01:50]} 17. N5d4 {[%clk 0:01:59]}  Nc5 {[%clk 0:01:35]} 18. Qh6 {[%clk 0:01:51]}  Nce4 {[%clk 0:01:19]} 19. Rad1 {[%clk 0:01:36]}  Bc8 {[%clk 0:01:11]} 20. Ng5 {[%clk 0:01:29]}  Re5 {[%clk 0:00:19]} 21. Nxe4 {[%clk 0:01:19]}  dxe4 {[%clk 0:00:20]} 22. Qf4 {[%clk 0:00:55]}  Rf5 {[%clk 0:00:19]} 23. Nxf5 {[%clk 0:00:54]}  Bxf5 {[%clk 0:00:18]} 24. h3 {[%clk 0:00:52]}  Qxb2 {[%clk 0:00:17]} 25. Rb1 {[%clk 0:00:49]}  Qc3 {[%clk 0:00:07]} 26. Rfc1 {[%clk 0:00:47]}  Qd4 {[%clk 0:00:07]} 27. e3 {[%clk 0:00:44]}  Qd6 {[%clk 0:00:01]} 28. Qxd6 {[%clk 0:00:43]} 1-0


[Site "https://www.chess.com"]

[Event "Titled Tuesday Blitz May 9 Late 2023"]
[White "Chirivi C, Jenny Astrid"]
[Black "brm72"]
[WhiteFideId "4403061"]
[WhiteElo "2019"]
[BlackElo "2528"]
[Result "0-1"]
[Round "07"]
[TimeControl "180+2"]
[Date "2023.05.09"]
[WhiteClock "0:00:00"]
[BlackClock "0:00:04"]

1. d4 {[%clk 0:03:00]}  Nf6 {[%clk 0:03:00]} 2. c4 {[%clk 0:02:59]}  g6 {[%clk 0:03:00]} 3. Nc3 {[%clk 0:02:58]}  d5 {[%clk 0:03:00]} 4. Nf3 {[%clk 0:02:56]}  Bg7 {[%clk 0:03:00]} 5. Qb3 {[%clk 0:02:55]}  dxc4 {[%clk 0:03:00]} 6. Qxc4 {[%clk 0:02:56]}  O-O {[%clk 0:03:00]} 7. e4 {[%clk 0:02:56]}  Nc6 {[%clk 0:02:53]} 8. Be2 {[%clk 0:02:48]}  Bg4 {[%clk 0:02:50]} 9. Be3 {[%clk 0:02:37]}  Bxf3 {[%clk 0:02:29]} 10. gxf3 {[%clk 0:02:30]}  e5 {[%clk 0:02:29]} 11. d5 {[%clk 0:02:27]}  Nd4 {[%clk 0:02:30]} 12. Bxd4 {[%clk 0:02:20]}  exd4 {[%clk 0:02:31]} 13. Qxd4 {[%clk 0:02:18]}  Re8 {[%clk 0:02:20]} 14. Qd2 {[%clk 0:02:09]}  Qd6 {[%clk 0:02:09]} 15. O-O-O {[%clk 0:02:06]}  a6 {[%clk 0:02:08]} 16. Kb1 {[%clk 0:02:05]}  b5 {[%clk 0:02:07]} 17. Rc1 {[%clk 0:02:00]}  Nh5 {[%clk 0:02:07]} 18. Nd1 {[%clk 0:01:46]}  Be5 {[%clk 0:02:03]} 19. Rc6 {[%clk 0:01:44]}  Qe7 {[%clk 0:02:01]} 20. Ne3 {[%clk 0:01:40]}  Bf4 {[%clk 0:01:44]} 21. Qc3 {[%clk 0:01:35]}  Be5 {[%clk 0:01:35]} 22. Qc2 {[%clk 0:01:34]}  Kh8 {[%clk 0:01:26]} 23. Ng4 {[%clk 0:01:06]}  Bg7 {[%clk 0:01:22]} 24. Rxc7 {[%clk 0:01:03]}  Qf8 {[%clk 0:01:17]} 25. Rc1 {[%clk 0:01:01]}  f5 {[%clk 0:01:16]} 26. exf5 {[%clk 0:00:58]}  gxf5 {[%clk 0:01:17]} 27. Ne3 {[%clk 0:00:54]}  Nf4 {[%clk 0:00:50]} 28. Bf1 {[%clk 0:00:51]}  Be5 {[%clk 0:00:49]} 29. Rc6 {[%clk 0:00:45]}  Rad8 {[%clk 0:00:40]} 30. Rxa6 {[%clk 0:00:38]}  b4 {[%clk 0:00:40]} 31. Rb6 {[%clk 0:00:35]}  Ra8 {[%clk 0:00:37]} 32. Bc4 {[%clk 0:00:32]}  Rec8 {[%clk 0:00:33]} 33. Qxf5 {[%clk 0:00:31]}  Qg7 {[%clk 0:00:29]} 34. Qg4 {[%clk 0:00:21]}  Bxb2 {[%clk 0:00:21]} 35. Qxg7+ {[%clk 0:00:19]}  Bxg7 {[%clk 0:00:21]} 36. Nf5 {[%clk 0:00:18]}  Bc3 {[%clk 0:00:20]} 37. Nd6 {[%clk 0:00:15]}  Rc7 {[%clk 0:00:19]} 38. Rb7 {[%clk 0:00:14]}  Rxb7 {[%clk 0:00:16]} 39. Nxb7 {[%clk 0:00:13]}  Rc8 {[%clk 0:00:15]} 40. d6 {[%clk 0:00:13]}  Rxc4 {[%clk 0:00:14]} 41. d7 {[%clk 0:00:13]}  Ne6 {[%clk 0:00:13]} 42. Rd1 {[%clk 0:00:10]}  Rc7 {[%clk 0:00:06]} 43. d8=Q+ {[%clk 0:00:08]}  Nxd8 {[%clk 0:00:07]} 44. Rxd8+ {[%clk 0:00:07]}  Kg7 {[%clk 0:00:07]} 45. Nd6 {[%clk 0:00:07]}  Rc6 {[%clk 0:00:04]} 46. Nf5+ {[%clk 0:00:08]}  Kf6 {[%clk 0:00:04]} 47. Ne3 {[%clk 0:00:07]}  Re6 {[%clk 0:00:04]} 48. Rf8+ {[%clk 0:00:08]}  Kg7 {[%clk 0:00:04]} 49. Rb8 {[%clk 0:00:07]}  Rg6 {[%clk 0:00:04]} 50. Rb7+ {[%clk 0:00:07]}  Kg8 {[%clk 0:00:03]} 51. Kc2 {[%clk 0:00:07]}  Rg1 {[%clk 0:00:04]} 52. Rb8+ {[%clk 0:00:06]}  Kg7 {[%clk 0:00:03]} 53. Rb7+ {[%clk 0:00:06]}  Kg8 {[%clk 0:00:03]} 54. Nd5 {[%clk 0:00:06]}  Be1 {[%clk 0:00:02]} 55. Nf6+ {[%clk 0:00:05]}  Kf8 {[%clk 0:00:01]} 56. Ne4 {[%clk 0:00:05]}  Rg2 {[%clk 0:00:01]} 57. Kd3 {[%clk 0:00:05]}  Bxf2 {[%clk 0:00:02]} 58. Rb8+ {[%clk 0:00:05]}  Ke7 {[%clk 0:00:02]} 59. Rxb4 {[%clk 0:00:05]}  Bh4 {[%clk 0:00:02]} 60. Rb7+ {[%clk 0:00:06]}  Ke6 {[%clk 0:00:02]} 61. a4 {[%clk 0:00:06]}  Be7 {[%clk 0:00:03]} 62. a5 {[%clk 0:00:05]}  Ra2 {[%clk 0:00:04]} 63. Rb5 {[%clk 0:00:04]}  Ra3+ {[%clk 0:00:04]} 64. Ke2 {[%clk 0:00:04]}  Ra2+ {[%clk 0:00:05]} 65. Ke3 {[%clk 0:00:04]}  Rxh2 {[%clk 0:00:05]} 66. a6 {[%clk 0:00:02]}  Ra2 {[%clk 0:00:05]} 67. Rb6+ {[%clk 0:00:02]}  Kd7 {[%clk 0:00:05]} 68. Rh6 {[%clk 0:00:00]}  Ra3+ {[%clk 0:00:04]} 0-1


[Site "https://www.chess.com"]

[Event "Titled Tuesday Blitz May 9 Late 2023"]
[White "Yeritsyan, Hayk"]
[Black "Chabris, Christopher"]
[WhiteFideId "13307320"]
[BlackFideId "2005263"]
[WhiteElo "2471"]
[BlackElo "2339"]
[Result "0-1"]
[Round "07"]
[TimeControl "180+2"]
[Date "2023.05.09"]
[WhiteClock "0:00:07"]
[BlackClock "0:00:14"]

1. d4 {[%clk 0:03:00]}  Nf6 {[%clk 0:02:59]} 2. Nf3 {[%clk 0:03:01]}  e6 {[%clk 0:02:59]} 3. e3 {[%clk 0:03:01]}  d5 {[%clk 0:02:59]} 4. Bd3 {[%clk 0:03:02]}  b6 {[%clk 0:02:59]} 5. Ne5 {[%clk 0:03:02]}  Bb7 {[%clk 0:02:55]} 6. Nd2 {[%clk 0:03:00]}  Bd6 {[%clk 0:02:53]} 7. f4 {[%clk 0:03:00]}  a6 {[%clk 0:02:53]} 8. Qf3 {[%clk 0:03:00]}  c5 {[%clk 0:02:51]} 9. c3 {[%clk 0:03:00]}  Nc6 {[%clk 0:02:46]} 10. O-O {[%clk 0:02:59]}  Qc7 {[%clk 0:02:44]} 11. g4 {[%clk 0:02:57]}  O-O-O {[%clk 0:02:42]} 12. g5 {[%clk 0:02:56]}  Ne8 {[%clk 0:02:40]} 13. a3 {[%clk 0:02:41]}  f6 {[%clk 0:02:32]} 14. Nxc6 {[%clk 0:02:38]}  Qxc6 {[%clk 0:02:31]} 15. gxf6 {[%clk 0:02:35]}  gxf6 {[%clk 0:02:31]} 16. Kh1 {[%clk 0:02:35]}  f5 {[%clk 0:02:26]} 17. b4 {[%clk 0:02:32]}  Nf6 {[%clk 0:02:21]} 18. bxc5 {[%clk 0:02:30]}  bxc5 {[%clk 0:02:21]} 19. Rb1 {[%clk 0:02:24]}  Ne4 {[%clk 0:02:11]} 20. Bxe4 {[%clk 0:02:20]}  fxe4 {[%clk 0:02:05]} 21. Qe2 {[%clk 0:02:19]}  c4 {[%clk 0:02:04]} 22. Rg1 {[%clk 0:02:12]}  Rhg8 {[%clk 0:02:01]} 23. Bb2 {[%clk 0:02:02]}  Qa4 {[%clk 0:01:54]} 24. Rxg8 {[%clk 0:01:51]}  Rxg8 {[%clk 0:01:53]} 25. Qd1 {[%clk 0:01:52]}  Qe8 {[%clk 0:01:40]} 26. Qe2 {[%clk 0:01:45]}  Bc6 {[%clk 0:01:30]} 27. Rg1 {[%clk 0:01:41]}  Rxg1+ {[%clk 0:01:07]} 28. Kxg1 {[%clk 0:01:42]}  Ba4 {[%clk 0:01:00]} 29. Qg4 {[%clk 0:01:38]}  Bd7 {[%clk 0:00:47]} 30. Qg7 {[%clk 0:01:31]}  Qh5 {[%clk 0:00:35]} 31. Nf1 {[%clk 0:01:26]}  Qe2 {[%clk 0:00:30]} 32. Qg2 {[%clk 0:01:17]}  Qd3 {[%clk 0:00:28]} 33. Qg8+ {[%clk 0:01:08]}  Kc7 {[%clk 0:00:28]} 34. Qa8 {[%clk 0:00:59]}  Qc2 {[%clk 0:00:21]} 35. Qa7+ {[%clk 0:00:58]}  Kd8 {[%clk 0:00:21]} 36. Qxa6 {[%clk 0:00:52]}  Qxb2 {[%clk 0:00:16]} 37. Qxd6 {[%clk 0:00:52]}  Qxc3 {[%clk 0:00:16]} 38. Qb4 {[%clk 0:00:51]}  Qxb4 {[%clk 0:00:14]} 39. axb4 {[%clk 0:00:52]}  c3 {[%clk 0:00:14]} 40. Ng3 {[%clk 0:00:51]}  Bb5 {[%clk 0:00:14]} 41. Ne2 {[%clk 0:00:07]}  Bxe2 {[%clk 0:00:14]} 0-1


[Site "https://www.chess.com"]